Cogmind - Beta 14 @@@ ROGUE MODE // 2024.09.19 @ 15:29:32 Player: huluvu Result: Destroyed by G-47 Trooper with Particle Gun Performance ------------- Evolutions (2) 1000 Regions Visited (5) 1000 Robots Destroyed (34) 170 Value Destroyed (896) 896 Prototype IDs (4) 80 Alien Tech Used (0) 0 Bonus (335) 335 TOTAL SCORE: 3481 Bonus ------- High Alert Combat Kills 35 Aligned with FarCom 300 Cogmind --------- Core Integrity 0/550 Matter 269/300 Energy 90/100 System Corruption 0% Temperature Cool (9) Movement Flying (120) Ox1 Location -8/Materials Parts ------- > --- POWER (1) -------- (None) > --- PROPULSION (4) --- Flight Unit > --- UTILITY (4) ------ Improved Heat Sink > --- WEAPON (2) ------- Improved Medium Laser Improved Light Cannon > --- INVENTORY (5) ---- Light Ion Engine Improved Ion Engine EM Pulse Gun Datajack Peak State ------------ > --- POWER ------------ Improved Ion Engine > --- PROPULSION ------- Aluminum Leg Aluminum Leg > --- UTILITY ---------- Improved Heat Sink Small Storage Unit > --- WEAPON ----------- YOLO Cannon > --- INVENTORY -------- Light Ion Engine Improved Ion Engine Heat Sink EM Pulse Gun Shotgun Improved Light Cannon Rocket Launcher Datajack [Rating: 29] Favorites ----------- Power Light Ion Engine Engine Light Ion Engine Power Core Light Nuclear Core Propulsion Light Treads Treads Light Treads Leg Aluminum Leg Flight Unit Flight Unit Utility Small Storage Unit Device Heat Sink Storage Small Storage Unit Processor Signal Interpreter Weapon Medium Laser Energy Gun Medium Laser Energy Cannon YOLO Cannon Ballistic Gun AWS/Gauss Ballistic Cannon Improved Light Cannon Special Weapon Field Lobotomy Kit Special Melee Weapon Datajack Build | -11 -10 -10 -10 -9 -8 ------- Run | Yrd Mat Min Exi Min Mat Slots Evolved 4 | . . . . . 4 Power . | . . . . . . Propulsion 2 | . . . . . 2 Utility 2 | . . . . . 2 Weapon . | . . . . . . Parts Attached 32 | 6 3 1 5 7 10 Power 5 | 1 . 1 . 1 2 Engine 4 | 1 . 1 . 1 1 Core 1 | . . . . . 1 Reactor . | . . . . . . Propulsion 8 | 2 . . . 3 3 Treads 2 | 2 . . . . . Leg 4 | . . . . 3 1 Wheel . | . . . . . . Hover . | . . . . . . Flight 2 | . . . . . 2 Utility 5 | 1 1 . . 3 . Device 3 | . 1 . . 2 . Storage 1 | 1 . . . . . Processor 1 | . . . . 1 . Hackware . | . . . . . . Protection . | . . . . . . Artifact . | . . . . . . Weapon 14 | 2 2 . 5 . 5 Energy Gun 5 | 2 1 . . . 2 Energy Cannon 2 | . . . 2 . . Ballistic Gun 1 | . . . 1 . . Ballistic Cannon 2 | . . . . . 2 Launcher . | . . . . . . Special Weapon 2 | . . . 2 . . Impact Weapon . | . . . . . . Slashing Weapon . | . . . . . . Piercing Weapon . | . . . . . . Special Melee Weapon 2 | . 1 . . . 1 Unidentified Prototypes 4 | . . . 3 . 1 Parts Lost 9 | . . 1 . 1 7 Power 2 | . . 1 . . 1 Propulsion 5 | . . . . 1 4 Utility 1 | . . . . . 1 Weapon 1 | . . . . . 1 Highest Loss Streak 4 | . . 1 . 1 4 To Critical Strikes . | . . . . . . Average Slot Usage (%) 89 | . 91 100 95 84 47 Engine 13 | . 14 14 14 14 7 Treads 19 | . 28 28 28 . . Leg 6 | . . . . 27 9 Device 12 | . 5 14 14 14 9 Storage 13 | . 14 14 14 14 5 Energy Gun 14 | . 16 28 19 . 3 Energy Cannon 5 | . . . 3 14 5 Special Melee Weapon 1 | . 11 . . . . Peak Build Rating 29 | 6 7 7 27 29 29 Average Rating 14 | 4 6 6 12 26 20 On Entrance 12 | . 6 7 7 25 29 Naked Turns . | . . . . . . Heaviest Build 31 | 14 14 14 27 31 31 Greatest Support 40 | 40 40 40 40 20 20 Greatest Overweight (x) 4 | . . . . 1 4 Average Overweight (x) . | . . . . 1 1 Largest Inventory Capacity 8 | 8 8 8 8 8 8 Average Capacity 7 | 7 8 8 8 8 6 Most Carried 8 | 6 8 8 8 8 8 Average Carried 7 | 4 7 7 7 7 6 Final Capacity 8 | 8 8 8 8 8 5 Final Carried 8 | 6 8 8 8 8 4 Class Distribution -------------------- 100% | Mutant Dominant Class ---------------- Mutant | -10/Materials Mutant | -10/Mines Mutant | -10/Exiles Mutant | -9/Mines Mutant | -8/Materials Resources | -11 -10 -10 -10 -9 -8 ----------- Run | Yrd Mat Min Exi Min Mat Matter Collected 490 | 203 87 10 . 115 75 Remotely . | . . . . . . Salvage Created 854 | . 150 47 . 170 487 Parts 53 | . 7 5 . 10 31 Haulers Intercepted 1 | . . . . . 1 Recyclers Shooed 3 | . 3 . . . . Parts Field Recycled . | . . . . . . Retrieved Matter . | . . . . . . Parts Self-Destructed . | . . . . . . Prevented . | . . . . . . Kills | -11 -10 -10 -10 -9 -8 ------- Run | Yrd Mat Min Exi Min Mat Combat Hostiles Destroyed 26 | . 3 3 . 9 11 Guns 8 | . 3 3 . . 2 Cannons 7 | . . . . 3 4 AOE 10 | . . . . 6 4 Classes Destroyed 8 | . 2 1 . . 5 Worker 1 | . . . . . 1 Builder 2 | . . . . . 2 Hauler 1 | . . . . . 1 Recycler 1 | . . . . . 1 Operator 2 | . 1 . . . 1 Watcher 1 | . . . . . 1 Swarmer 10 | . . 3 . 4 3 Grunt 16 | . 3 . . 5 8 Best Kill Streak 14 | . 2 3 . 4 14 Combat Bots Only 8 | . 2 3 . 4 8 Max Kills in Single Turn 3 | . 1 1 . 3 3 Gunslinging . | . . . . . . Exploded 2 | . . . . 2 1 Melee . | . . . . . . Uniques/NPCs Destroyed . | . . . . . . Combat | -11 -10 -10 -10 -9 -8 -------- Run | Yrd Mat Min Exi Min Mat Hostile Shots Fired 154 | . 19 31 . 23 81 Missed 37 | . . 9 . 6 22 Damage Taken 1581 | . 246 183 . 282 870 Core 456 | . 60 49 . 53 294 Absorbed by Shields . | . . . . . . Core Remaining (%) 67 | 100 . . . 35 . Volleys Fired 80 | . 33 8 . 10 29 Largest 2 | . 2 2 . 1 2 Hottest 100 | . 90 90 . 100 100 Shots Fired 92 | . 34 16 . 10 32 Gun 66 | . 34 16 . . 16 Cannon 26 | . . . . 10 16 Launcher . | . . . . . . Special . | . . . . . . Kinetic 4 | . . . . . 4 Thermal 86 | . 33 16 . 10 27 Explosive . | . . . . . . Electromagnetic 2 | . 1 . . . 1 Robot Hit Streak 7 | . 6 4 . 4 7 Robot Miss Streak 5 | . 3 2 . 5 2 Penetration Max . | . . . . . . Secondary Targets 1 | . . 1 . . . Max Gunslinging Chain 1 | . . 1 . . . Shots Hit Robots 57 | . 22 10 . 4 21 Core Hits 36 | . 9 3 . 7 17 Critical Kills 1 | . . . . . 1 Critical Parts Destroyed . | . . . . . . Critical Strikes 6 | . 5 . . . 1 Burn 5 | . 5 . . . . Meltdown 1 | . . . . . 1 Melee Attacks 1 | . 1 . . . . Impact . | . . . . . . Slashing . | . . . . . . Piercing . | . . . . . . Sneak Attacks 1 | . 1 . . . . Combat Hostiles . | . . . . . . Follow-up Attacks . | . . . . . . Damage Inflicted 3565 | . 267 114 . 948 2236 Guns 598 | . 267 114 . . 217 Cannons 1281 | . . . . 412 869 Explosions 1686 | . . . . 536 1150 Melee . | . . . . . . Ramming . | . . . . . . Kinetic 71 | . . . . . 71 Thermal 3476 | . 249 114 . 948 2165 Explosive . | . . . . . . Electromagnetic 18 | . 18 . . . . Impact . | . . . . . . Slashing . | . . . . . . Piercing . | . . . . . . Highest Corruption . | . . . . . . Average Corruption . | . . . . . . Corruption Purged . | . . . . . . Corruption Blocked . | . . . . . . Overload Shots . | . . . . . . Overflow Damage 439 | . . . . 98 341 Projectiles 256 | . . . . 70 186 Explosions 183 | . . . . 28 155 Melee . | . . . . . . Knockbacks 3 | . . . . . 3 Impact . | . . . . . . Kinetic 2 | . . . . . 2 Secondary 1 | . . . . . 1 Self-Inflicted Damage 287 | . . . . 115 172 Shots 4 | . . . . 2 2 Rammed . | . . . . . . Targets Rammed . | . . . . . . Kicked . | . . . . . . Crushed . | . . . . . . Highest Temperature 258 | . 258 . . 44 27 Average Temperature 71 | . 98 . . 21 7 Received Heat Transfer 513 | . 174 . . 69 270 Siege Activations . | . . . . . . Robots Corrupted . | . . . . . . Combat Hostiles . | . . . . . . Parts Fried 1 | . 1 . . . . Impact Corruptions . | . . . . . . Robots Melted 1 | . . . . . 1 Combat Hostiles 1 | . . . . . 1 Parts Melted 7 | . 4 . . . 3 Heat Transferred 4689 | . 1110 298 . 960 2321 Parts Sabotaged . | . . . . . . Parts Stolen . | . . . . . . Parts Stripped . | . . . . . . Power Chain Reactions . | . . . . . . Alert | -11 -10 -10 -10 -9 -8 ------- Run | Yrd Mat Min Exi Min Mat Peak Influence 432 | . 75 88 . 190 432 Initial 74 | . . 28 . . 74 Average 101 | . 46 71 . 111 263 Maximum Alert Level 2 | . . . . . 2 Low Security (%) 92 | 100 100 100 . 100 44 Level 1 2 | . . . . . 22 Level 2 4 | . . . . . 32 Level 3 . | . . . . . . Level 4 . | . . . . . . Level 5 . | . . . . . . High Security . | . . . . . . Max Security . | . . . . . . Squads Dispatched 2 | . . . . . 2 Investigation . | . . . . . . Extermination . | . . . . . . Reinforcement 2 | . . . . . 2 Assault . | . . . . . . Garrison . | . . . . . . Intercept . | . . . . . . Searches Triggered . | . . . . . . Construction Impeded 1 | . . . . . 1 Haulers Reinforced . | . . . . . . Active Scanning Responses . | . . . . . . Cargo Convoy Interrupts . | . . . . . . Stealth | -11 -10 -10 -10 -9 -8 --------- Run | Yrd Mat Min Exi Min Mat Distress Signals 2 | . . . . . 2 Communications Jammed . | . . . . . . Distress Signals . | . . . . . . Times Spotted 27 | . 3 3 . 6 15 Peak Tracking Total 7 | . 2 3 . 3 7 Tactical Retreats 1 | . . . . . 1 Traps | -11 -10 -10 -10 -9 -8 ------- Run | Yrd Mat Min Exi Min Mat Traps Triggered . | . . . . . . Indirectly . | . . . . . . Trap Hack Attempts . | . . . . . . Triggered . | . . . . . . Disarmed . | . . . . . . Reprogrammed . | . . . . . . Reused . | . . . . . . Traps Extracted . | . . . . . . Installed . | . . . . . . Triggered . | . . . . . . Machines | -11 -10 -10 -10 -9 -8 ---------- Run | Yrd Mat Min Exi Min Mat Machines Disabled 3 | . . . . 1 2 Max in Single Turn 1 | . . . . 1 1 Machines Repaired . | . . . . . . Machines Dismantled . | . . . . . . Machines Sabotaged . | . . . . . . Overloaded Fab Kills . | . . . . . . Hacking | -11 -10 -10 -10 -9 -8 --------- Run | Yrd Mat Min Exi Min Mat Machines Accessed 5 | . 1 . 4 . . Terminals 1 | . 1 . . . . Fabricators . | . . . . . . Repair Stations . | . . . . . . Recycling Units . | . . . . . . Scanalyzers . | . . . . . . Garrison Access . | . . . . . . Total Hacks 52 | . 3 . 49 . . Successful 51 | . 2 . 49 . . Failed 1 | . 1 . . . . Catastrophic . | . . . . . . Database Lockouts . | . . . . . . Manual 6 | . 2 . 2 . 2 Terminals 3 | . 3 . . . . Fabricators . | . . . . . . Repair Stations . | . . . . . . Recycling Units . | . . . . . . Scanalyzers . | . . . . . . Garrison Access . | . . . . . . Terminal Hacks 51 | . 2 . 49 . . Record 49 | . . . 49 . . Branch Access Points 1 | . 1 . . . . Zone Layout 1 | . 1 . . . . Fabricator Hacks . | . . . . . . Repair Station Hacks . | . . . . . . Recycling Unit Hacks . | . . . . . . Scanalyzer . | . . . . . . Garrison Access Hacks . | . . . . . . Unauthorized Hacks . | . . . . . . Terminals . | . . . . . . Fabricators . | . . . . . . Repair Stations . | . . . . . . Recycling Units . | . . . . . . Scanalyzers . | . . . . . . Garrison Access . | . . . . . . Data Cores Recovered 1 | . 1 . . . . Used 1 | . 1 . . . . Hacking Detections 1 | . . . . . 1 Full Trace Events . | . . . . . . Feedback Events . | . . . . . . Feedback Blocked . | . . . . . . Robot Schematics Acquired . | . . . . . . Robots Built . | . . . . . . Authchips . | . . . . . . Time . | . . . . . . Total Robot Build Rating . | . . . . . . Part Schematics Acquired . | . . . . . . Parts Built . | . . . . . . Authchips . | . . . . . . Time . | . . . . . . Total Part Build Rating . | . . . . . . Parts Repaired . | . . . . . . Time . | . . . . . . Parts Recycled . | . . . . . . Recycled Matter . | . . . . . . Retrieved Matter . | . . . . . . Retrieved Components . | . . . . . . Parts Scanalyzed . | . . . . . . Part Schematics Acquired . | . . . . . . Parts Damaged . | . . . . . . Bothacking | -11 -10 -10 -10 -9 -8 ------------ Run | Yrd Mat Min Exi Min Mat Used RIF Installer . | . . . . . . Robots Hacked 1 | . 1 . . . . Non-combat 1 | . 1 . . . . Combat . | . . . . . . Robot Hacks Applied 1 | . 1 . . . . parse_system 1 | . 1 . . . . Relay Couplers Released . | . . . . . . Fabnet Peak Effective % . | . . . . . . Robots Rewired . | . . . . . . Allies Hacked . | . . . . . . Hacks Repelled . | . . . . . . Allies | -11 -10 -10 -10 -9 -8 -------- Run | Yrd Mat Min Exi Min Mat Total Allies . | . . . . . . Largest Group . | . . . . . . Highest-Rated Group . | . . . . . . Highest-Rated Ally . | . . . . . . Total Orders . | . . . . . . Ally Attacks . | . . . . . . Total Damage . | . . . . . . Kills . | . . . . . . Allies Corrupted . | . . . . . . Allies Melted . | . . . . . . Intel | -11 -10 -10 -10 -9 -8 ------- Run | Yrd Mat Min Exi Min Mat Robot Analysis Total . | . . . . . . Derelict Logs Recovered . | . . . . . . Drone Launches . | . . . . . . Drone Recoveries . | . . . . . . Exploration | -11 -10 -10 -10 -9 -8 ------------- Run | Yrd Mat Min Exi Min Mat Turns Passed 2755 | 116 338 216 1312 585 188 Spaces Moved 1434 | 64 158 119 811 233 49 Core 16 | 11 . . . . 5 Treads 1142 | 53 158 119 811 1 . Legs 258 | . . . . 232 26 Wheels . | . . . . . . Hover . | . . . . . . Flight 18 | . . . . . 18 Fastest Speed 37 | 50 160 160 160 190 37 Average Speed 164 | 141 160 160 160 190 162 Slowest Speed 330 | 160 160 160 160 240 330 Overloaded Moves . | . . . . . . Propulsion Burnouts . | . . . . . . Robots Hopped . | . . . . . . Cave-ins Triggered . | . . . . . . Exploration Rate (%) 30 | 4 25 19 93 33 10 Regions Visited 5 Branch Regions 3 Pre-discovered Areas 1 | . . . 1 . . Known Exits Taken 1 | . 1 . . . . Unknown Exits Taken 4 | 1 . 1 1 1 . Scrap Searched 3 | . . . . 3 . Spaces Dug . | . . . . . . Terrain Destroyed 232 | . . . . 139 93 Melee . | . . . . . . Projectile 11 | . . . . 6 5 AOE 221 | . . . . 133 88 Terrain Rammed . | . . . . . . Walls Destroyed . | . . . . . . Machines Disabled . | . . . . . . Actions | -11 -10 -10 -10 -9 -8 --------- Run | Yrd Mat Min Exi Min Mat Total 1702 | 90 208 130 830 347 97 Wait 99 | 9 9 . . 78 3 Move 1429 | 63 157 118 810 232 49 Hop . | . . . . . . Pick Up 40 | 12 4 2 7 11 4 Fast Attach . | . . . . . . Attach 20 | 6 1 1 5 1 6 Detach 1 | . . . . . 1 Swap 12 | . 2 . . 6 4 Drop 20 | . 1 1 8 9 1 Fire 80 | . 33 8 . 10 29 Melee 1 | . 1 . . . . Ram . | . . . . . . Kick . | . . . . . . Crush . | . . . . . . Escape Stasis . | . . . . . . Rewire . | . . . . . . Trap . | . . . . . . Miscellaneous . | . . . . . . Route ------- -11/Scrapyard -10/Materials (discovered 2 exits: *Min x2) -10/Mines -10/Exiles (discovered 2 exits: [*Min x2]) -9/Mines -8/Materials History --------- Turn | Location | Event 26 | -11/Scrapyard | Discovered new exit (range 15) 117 | -11/Scrapyard | Entered Materials 136 | -10/Materials | Identified exit to Mines 332 | -10/Materials | Build established: Mutant 455 | -10/Materials | Entered Mines 599 | -10/Mines | Deemed a non-threat by the Exiles lab entrance 599 | -10/Mines | Discovered new exit (range 5) 671 | -10/Mines | Entered Exiles 700 | -10/Exiles | Discovered new exit (range 15) 718 | -10/Exiles | Met 8R-AWN 748 | -10/Exiles | Met EX-HEX 871 | -10/Exiles | Met EX-DEC 908 | -10/Exiles | Visited The Gauntlet 1163 | -10/Exiles | Met EX-BIN 1247 | -10/Exiles | Discovered new exit (range 11) 1329 | -10/Exiles | Learned location of Zion (-7) 1523 | -10/Exiles | Aligned with FarCom system 1524 | -10/Exiles | Given EX-Vault access code 1561 | -10/Exiles | Opened EX-Vault 1597 | -10/Exiles | Found Prototype Energy Cannon 1599 | -10/Exiles | Identified YOLO Cannon 1605 | -10/Exiles | Found Prototype Ballistic Gun 1607 | -10/Exiles | Identified AWS/Gauss 1611 | -10/Exiles | Found Prototype Special Weapon 1612 | -10/Exiles | Identified Field Lobotomy Kit 1668 | -10/Exiles | Warned to stay clear of 0b10 Research branches 1983 | -10/Exiles | Left Exiles lab with YOLO Cannon 1983 | -10/Exiles | Entered Mines 1993 | -9/Mines | Core integrity fell below 50% 2220 | -9/Mines | Found DCF Scrap (14 items) 2303 | -9/Mines | Received a Rocket Launcher from a helpful Derelict 2515 | -9/Mines | Discovered new exit (range 9) 2568 | -9/Mines | Entered Materials 2568 | -8/Materials | Evolved 4 slots: Propulsion x2, Utility x2 2681 | -8/Materials | YOLO Cannon suddenly exploded 2682 | -8/Materials | Core integrity fell below 50% 2711 | -8/Materials | Destroyed 8 combat bots 2712 | -8/Materials | Lost 4 parts (2n1u1w) 2733 | -8/Materials | Core integrity fell below 20% 2756 | -8/Materials | Destroyed by G-47 Trooper with Particle Gun Last Messages --------------- 02739_ K-01 Serf collects debris. 02740_ U-05 Engineer lays Concrete. 02742_ U-05 Engineer builds a Wall. 02743_ K-01 Serf collects debris. 02744_ Imp. Heat Sink melted. 02744_ Particle Gun melted. 02744_ G-47 Trooper destroyed. 02745_ Acquired 40 matter. 02745_ U-05 Engineer lays Concrete. 02746_ K-01 Serf collects debris. 02746_ U-05 Engineer lays Concrete. 02747_ G-47 Trooper knocked back. 02747_ K-01 Serf collects debris. 02747_ U-05 Engineer builds a Wall. 02750_ G-47 Trooper knocked back. 02750_ K-01 Serf collects debris. 02751_ U-05 Engineer builds a Wall. 02752_ K-01 Serf destroyed. 02753_ G-47 Trooper destroyed. 02755_ K-01 Serf collects debris. Map ----- +----------------------------------------------------+ | ?????????????????????????????????????????????????? | | ?????????????????????????????????????????????????? | | ?????????????????????????????????????????????????? | | ?????????????????????????????????????????????????? | | ?????????????????????????????????????????????????? | | ?????????????????????????????????????????????????? | | ?????????????????????????????????????????????????? | | ?????????????????????????????????????????????????? | | ?????????????????????????????????????????????????? | | ?????????????????????????????????????????????????? | | ?????????????????????????????????????????????????? | | ?????????????????????????????????????????????????? | | ?????????????????????????????????????????????????? | | ???????????????????????????????########??????????? | | ???????????????????????????????# ?????????? | | ???????????????????????????????# ?????????? | | ???????????????????????????????# ?????????? | | ???????????????????????????????# ????????? | | ?????????????????Y?????????????# """ """ #???##### | | ????????????????????????######## """ """ #??##" | | ???????????????????????## ## """ """ #?## " | | ?????????????????????### ; ???# # | | ????????????????????## # ###;;########## | | ???????????????????## *% | | ?????????????????###;;;[[=%* ! u | | ?????????? % %%@*% | | ?????????????????###;; [[!##### | | ???????????????????#k= g = | | ???????????????????# ; # [ = = | | ???????????????????## ; "" [[ | | ????????????????????### [" | | ??????????????????????#####+###"" | | ??????????????????????????# | | ??????????????????????????# ###### #"T"# ####### | | ?????????????????????????????????# ##### #?????? | | ?????????????????????????????????# #???# #?????? | | ?????????????????????????????????# #???# #?????? | | ?????????????????????????????????#+#???# ?????? | | ?????????????????????????????????? ????# ????? | | ?????????????????????????????????? ????? ???? | | ?????????????????????????????????? ???????? ???? | | ?????????????????????????????????? ????????? !??? | | ?????????????????????????????????? ??????????????? | | ?????????????????????????????????? ??????????????? | | ?????????????????????????????????? ??????????????? | | ?????????????????????????????????????????????????? | | ?????????????????????????????????????????????????? | | ?????????????????????????????????????????????????? | | ?????????????????????????????????????????????????? | | ?????????????????????????????????????????????????? | +----------------------------------------------------+ Best States ------------- Heat Dissipation 45 Energy Generation 14 Energy Capacity 265 Matter Stores 300 Matter Capacity 300 Sight Range 16 Terrain Scan Density 10 Evasion (%) 62 Recoil Reduction 2 Item Schematics ----------------- None Robot Schematics ------------------ None Fabricated ------------ Nothing Alien Tech Used ----------------- None Achievements -------------- None Challenges ------------ None Game ------ Seed GlidesysMasterBeam Manual? 0 Play Time 00:25:47 Cumulative 12.1 hours Start 2024.09.19 @ 14:59:32 End 2024.09.19 @ 15:29:32 Sessions 1 Manual Loads 0 Difficulty Rogue Special Mode None Game No. 19 Rogue 19 Adventurer 0 Explorer 0 Win Type - Total 0 Types 0/0/0/0/0/0/0/0/0 Lore% 9 Gallery% 24 Achievement% 18 Wizard Run 0 Options --------- Layout 0 ASCII 0 Keyboard 0 Movement Mouse Keybinds 0 Fullscreen 1 Font 24/Smallcaps Map View 76x50 Zoom Use 0% Tactical HUD 1 Map Filters NONE Filters NONE Steam 1 RUN: fbac079d-e050-4df7-9149-9dbcd3922d45